fUSD/lending_fUSD_20240327
["ID","MTS","AMOUNT","RATE_DAILY","PERIOD"]
[320759905,1711547460829,-19866.45,0.00054964,120]
[320759906,1711547460839,-500.0,0.00054964,120]
[320759907,1711547460850,-500.0,0.00054964,120]
[320759908,1711547460861,-845.84,0.00054964,120]
[320759909,1711547460871,-500.0,0.00054964,120]
[320759910,1711547460881,-500.0,0.00054964,120]
[320759911,1711547460891,-546.86,0.00054964,120]
[320759912,1711547460900,-500.0,0.00054964,120]
[320759913,1711547460910,-500.0,0.00054964,120]
[320759914,1711547460920,-500.0,0.00054964,120]
[320759915,1711547460931,-536.74,0.00054964,120]
[320759916,1711547460940,-150.0,0.00054967,14]
[320759917,1711547460952,-245000.0,0.00054968,2]
[320759918,1711547460962,-200.0,0.00054987,2]
[320759919,1711547460974,-208.68,0.00055,30]
[320759920,1711547460983,-500.0,0.00055,120]
[320759921,1711547460993,-554.86,0.00055,20]
[320759922,1711547461004,-706471.0,0.00055,120]
[320759923,1711547461014,-539.0,0.00055041,120]
[320759924,1711547461025,-161.877443,0.00055044,30]
[320759925,1711547461038,-708.79,0.00055065,120]
[320759926,1711547461048,-500.0,0.00055065,120]
[320759927,1711547461060,-1182.73,0.00055065,120]
[320759928,1711547461070,-554.15,0.00055065,120]
[320759929,1711547461082,-500.0,0.00055065,120]
[320759930,1711547461092,-500.0,0.00055065,120]
[320759931,1711547461102,-547.48,0.00055065,120]
[320759932,1711547461111,-500.0,0.00055065,120]
[320759933,1711547461125,-539.4,0.00055065,120]
[320759934,1711547461135,-500.0,0.00055065,120]
[320759935,1711547461145,-500.0,0.00055065,120]
[320759936,1711547461155,-500.0,0.00055065,120]
[320759937,1711547461166,-500.0,0.00055065,120]
[320759938,1711547461175,-500.0,0.00055065,120]
[320759939,1711547461185,-500.0,0.00055065,120]
[320759940,1711547461195,-500.0,0.00055068,120]
[320759941,1711547461205,-559.43,0.00055068,120]
[320759942,1711547461215,-707.13,0.00055068,120]
[320759943,1711547461224,-500.0,0.00055068,120]
[320759944,1711547461234,-500.0,0.00055068,120]
[320759945,1711547461244,-500.0,0.00055068,120]
[320759946,1711547461256,-776.51,0.00055068,120]
[320759947,1711547461269,-702.91,0.00055068,120]
[320759948,1711547461282,-500.0,0.00055068,120]
[320759949,1711547461295,-500.0,0.00055068,120]
[320759950,1711547461305,-692.4,0.00055068,120]
[320759951,1711547461315,-500.0,0.00055068,120]
[320759952,1711547461325,-500.0,0.00055068,120]
[320759953,1711547461335,-596.92,0.00055068,120]
[320759954,1711547461345,-500.0,0.00055068,120]
[320759955,1711547461356,-500.0,0.00055068,120]
[320759956,1711547461367,-633.32,0.00055068,120]
[320759957,1711547461377,-500.0,0.00055068,120]
[320759958,1711547461387,-500.0,0.00055068,120]
[320759959,1711547461398,-622.95,0.00055068,120]
[320759960,1711547461409,-500.0,0.00055068,120]
[320759961,1711547461419,-1370.53,0.00055068,120]
[320759962,1711547461430,-781.63,0.00055068,120]
[320759963,1711547461439,-500.0,0.00055068,120]
[320759964,1711547461450,-398.9930969,0.00055068,120]
[320759965,1711547461460,-500.0,0.00055068,120]
[320759966,1711547461470,-693.18,0.00055068,120]
[320759967,1711547461481,-500.0,0.00055068,120]
[320759968,1711547461491,-500.0,0.00055068,120]
[320759969,1711547461501,-605.46,0.00055068,120]
[320759970,1711547461512,-537.53,0.00055068,30]
[320759971,1711547461521,-500.0,0.00055068,120]
[320759972,1711547461532,-500.0,0.00055068,120]
[320759973,1711547461547,-500.0,0.00055068,120]
[320759974,1711547461557,-895.54,0.00055068,120]
[320759975,1711547461568,-538.81,0.00055068,120]
[320759976,1711547461580,-500.0,0.00055068,120]
[320759977,1711547461590,-541.68,0.00055068,120]
[320759978,1711547461600,-1225.45,0.00055068,120]
[320759979,1711547461610,-500.0,0.00055068,120]
[320759980,1711547461620,-673.71,0.00055068,120]
[320759981,1711547461630,-344.69,0.00055068,120]
[320759982,1711547461640,-566.85,0.00055068,120]
[320759983,1711547461650,-500.0,0.00055068,120]
[320759984,1711547461661,-1362.82,0.00055068,120]
[320759985,1711547461836,-590.12,0.00055068,120]
[320759986,1711547461848,-500.0,0.00055068,120]
[320759987,1711547461857,-500.0,0.00055068,120]
[320759988,1711547461867,-500.0,0.00055068,120]
[320759989,1711547461876,-842.86,0.00055068,120]
[320759990,1711547461886,-500.0,0.00055068,120]
[320759991,1711547461896,-500.0,0.00055068,120]
[320759992,1711547461905,-500.0,0.00055068,120]
[320759993,1711547461915,-595.05,0.00055068,120]
[320759994,1711547461926,-500.0,0.00055068,120]
[320759995,1711547461936,-1360.68,0.00055068,120]
[320759996,1711547461946,-500.0,0.00055068,120]
[320759997,1711547461955,-500.0,0.00055068,120]
[320759998,1711547461965,-1527.04,0.00055068,120]
[320759999,1711547461974,-890.52,0.00055068,120]
[320760000,1711547461984,-500.0,0.00055068,120]
[320760001,1711547461993,-500.0,0.00055068,120]
[320760002,1711547462002,-1216.37,0.00055068,120]
[320760003,1711547462013,-500.0,0.00055068,120]
[320760004,1711547462022,-1540.04,0.00055068,120]
[320760005,1711547462036,-571.26,0.00055068,120]
[320760006,1711547462048,-500.0,0.00055068,120]
[320760007,1711547462058,-689.51,0.00055068,120]
[320760008,1711547462068,-657.13,0.00055068,120]
[320760009,1711547462078,-500.0,0.00055068,120]
[320760010,1711547462089,-500.0,0.00055068,120]
[320760011,1711547462100,-911.73,0.00055068,120]
[320760012,1711547462110,-500.0,0.00055068,120]
[320760013,1711547462120,-500.0,0.00055068,120]
[320760014,1711547462130,-6611.27,0.00055068,120]
[320760015,1711547462141,-16678.45,0.00055068,120]
[320760016,1711547462152,-1780.18,0.00055068,120]
[320760017,1711547462163,-1209.86,0.00055068,120]
[320760018,1711547462174,-501.79,0.00055068,120]
[320760019,1711547462185,-575.32,0.00055068,120]
[320760020,1711547462195,-500.0,0.00055068,120]
[320760021,1711547462206,-2942.24,0.00055068,120]
[320760022,1711547462217,-2567.83,0.00055068,120]
[320760023,1711547462228,-6016.39,0.00055068,120]
[320760024,1711547462239,-1702.77,0.00055068,120]
[320760025,1711547462250,-831.8,0.00055068,120]
[320760026,1711547462261,-1213.84,0.00055068,120]
[320760027,1711547462272,-3855.13,0.00055068,120]
[320760028,1711547462283,-4201.42,0.00055068,120]
[320760029,1711547462298,-500.0,0.00055068,120]
[320760030,1711547462309,-932.7,0.00055068,120]
[320760031,1711547462319,-500.0,0.00055068,120]
[320760032,1711547462330,-500.0,0.00055068,120]
[320760033,1711547462339,-500.0,0.00055068,120]
[320760034,1711547462349,-3550.57,0.00055068,120]
[320760035,1711547462359,-2559.05,0.00055068,120]
[320760036,1711547462370,-5499.25,0.00055068,120]
[320760037,1711547462381,-48395.29,0.00055068,120]
[320760038,1711547462392,-1390.72,0.00055068,120]
[320760039,1711547462403,-5162.23,0.00055068,120]
[320760040,1711547462414,-2082.01,0.00055068,120]
[320760041,1711547462424,-500.0,0.00055068,120]
[320760042,1711547462434,-2876.92,0.00055068,120]
[320760043,1711547462443,-10736.94,0.00055068,120]
[320760044,1711547462454,-500.0,0.00055068,120]
[320760045,1711547462464,-1948.7,0.00055068,120]
[320760046,1711547462474,-864.04,0.00055068,120]
[320760047,1711547462484,-677.31,0.00055068,120]
[320760048,1711547462494,-701.41,0.00055068,120]
[320760049,1711547462505,-500.0,0.00055068,120]
[320760050,1711547462515,-3678.95,0.00055068,120]
[320760051,1711547462527,-2668.11,0.00055068,120]
[320760052,1711547462539,-3052.84,0.00055068,120]
[320760053,1711547462550,-544.82,0.00055068,120]
[320760054,1711547462560,-1533.85,0.00055068,120]
[320760055,1711547462570,-3700.04,0.00055068,120]
[320760056,1711547462580,-500.0,0.00055068,120]
[320760057,1711547462590,-573.51,0.00055068,120]
[320760058,1711547462600,-1552.43,0.00055068,120]
[320760059,1711547462610,-1930.46,0.00055068,120]
[320760060,1711547462620,-460.06,0.00055068,120]
[320760061,1711547462630,-1923.42,0.00055068,120]
[320760062,1711547462640,-11882.79,0.00055068,120]
[320760063,1711547462651,-505.28,0.00055068,120]
[320760064,1711547462661,-8492.3,0.00055068,120]
[320760065,1711547462672,-1359.53,0.00055068,120]
[320760066,1711547462682,-1349.5,0.00055068,120]
[320760067,1711547462692,-4906.41,0.00055068,120]
[320760068,1711547462703,-1106.79,0.00055068,120]
[320760069,1711547462713,-500.0,0.00055068,7]
[320760070,1711547462727,-1895.16,0.00055068,120]
[320760071,1711547462740,-1275.2,0.00055068,120]
[320760072,1711547462752,-1465.93,0.00055068,120]
[320760073,1711547462765,-2644.87,0.00055068,120]
[320760074,1711547462776,-3909.97,0.00055068,120]
[320760075,1711547462790,-2840.81,0.00055068,120]
[320760076,1711547462800,-500.0,0.00055068,120]
[320760077,1711547462812,-3554.71,0.00055068,120]
[320760078,1711547462822,-3837.75,0.00055068,120]
[320760079,1711547462834,-1676.29,0.00055068,120]
[320760080,1711547462844,-2251.01,0.00055068,120]
[320760081,1711547462856,-2333.55,0.00055068,120]
[320760082,1711547462868,-500.0,0.00055068,120]
[320760083,1711547462879,-500.0,0.00055068,120]
[320760084,1711547462891,-500.0,0.00055068,120]
[320760085,1711547462907,-3186.51,0.00055068,120]
[320760086,1711547462918,-500.0,0.00055068,120]
[320760087,1711547462930,-961.46,0.00055068,120]
[320760088,1711547462940,-7944.87,0.00055068,120]
[320760089,1711547462950,-500.0,0.00055068,120]
[320760090,1711547462961,-2629.59,0.00055068,120]
[320760091,1711547462972,-5765.53,0.00055068,120]
[320760092,1711547462982,-1767.42,0.00055068,120]
[320760093,1711547462993,-2523.36,0.00055068,120]
[320760094,1711547463004,-2487.18,0.00055068,120]
[320760095,1711547463015,-564.84,0.00055068,120]
[320760096,1711547463025,-500.0,0.00055068,120]
[320760097,1711547463041,-500.0,0.00055068,120]
[320760098,1711547463056,-500.0,0.00055068,120]
[320760099,1711547463067,-4544.11,0.00055068,120]
[320760100,1711547463078,-604.04,0.00055068,120]
[320760101,1711547463089,-34491.58,0.00055068,120]
[320760102,1711547463101,-3504.21,0.00055068,120]
[320760103,1711547463111,-1557.74,0.00055068,120]
[320760104,1711547463122,-500.0,0.00055068,85]
[320760105,1711547463133,-4303.75,0.00055068,120]
[320760106,1711547463143,-506.2,0.00055068,120]
[320760107,1711547463154,-500.0,0.00055068,120]
[320760108,1711547463164,-500.0,0.00055068,120]
[320760109,1711547463176,-2752.51,0.00055068,120]
[320760110,1711547463186,-942.97,0.00055068,120]
[320760111,1711547463196,-3844.74,0.00055068,120]
[320760112,1711547463206,-8460.64,0.00055068,120]
[320760113,1711547463216,-500.0,0.00055068,120]
[320760114,1711547463227,-500.0,0.00055068,120]
[320760115,1711547463237,-4052.72,0.00055068,120]
[320760116,1711547463247,-10741.07,0.00055068,120]
[320760117,1711547463258,-500.0,0.00055068,120]
[320760118,1711547463267,-1150.04,0.00055068,120]
[320760119,1711547463277,-1709.28,0.00055068,120]
[320760120,1711547463293,-2453.46,0.00055068,120]
[320760121,1711547463303,-3241.06,0.00055068,120]
[320760122,1711547463313,-500.0,0.00055068,120]
[320760123,1711547463322,-733.75,0.00055068,120]
[320760124,1711547463332,-1867.57,0.00055068,120]
[320760125,1711547463341,-500.0,0.00055068,120]
[320760126,1711547463351,-532.95,0.00055068,120]
[320760127,1711547463361,-2269.32,0.00055068,120]
[320760128,1711547463371,-4619.98,0.00055068,120]
[320760129,1711547463381,-1537.86,0.00055068,120]
[320760130,1711547463391,-405.23843386,0.00055068,120]
[320760131,1711547463402,-1148.48,0.00055068,120]
[320760132,1711547463412,-511.93,0.00055068,120]
[320760133,1711547463421,-500.0,0.00055068,120]
[320760134,1711547463431,-5913.79,0.00055068,120]
[320760135,1711547463440,-4569.3,0.00055068,120]
[320760136,1711547463450,-500.0,0.00055068,120]
[320760137,1711547463460,-2664.05,0.00055068,120]
[320760138,1711547463470,-3562.02,0.00055068,21]
[320760139,1711547463480,-500.0,0.00055068,120]
[320760140,1711547463489,-762.99,0.00055068,120]
[320760141,1711547463499,-1451.73,0.00055068,120]
[320760142,1711547463508,-1662.28,0.00055068,120]
[320760143,1711547463518,-1019.05,0.00055068,120]
[320760144,1711547463529,-8747.77,0.00055068,120]
[320760145,1711547463543,-500.0,0.00055068,120]
[320760146,1711547463554,-1810.35,0.00055068,120]
[320760147,1711547463563,-500.0,0.00055068,120]
[320760148,1711547463573,-1262.14,0.00055068,120]
[320760149,1711547463583,-1672.45,0.00055068,120]
[320760150,1711547463593,-2294.52,0.00055068,120]
[320760151,1711547463603,-1199.25,0.00055068,120]
[320760152,1711547463613,-1663.21,0.00055068,120]
[320760153,1711547463623,-1717.96,0.00055068,120]
[320760154,1711547463634,-151.0,0.00055068,120]
[320760155,1711547463643,-2456.3,0.00055068,120]
[320760156,1711547463654,-500.0,0.00055068,120]
[320760157,1711547463664,-1007.6,0.00055068,120]
[320760158,1711547463675,-500.0,0.00055068,120]
[320760159,1711547463686,-1813.7,0.00055068,120]
[320760160,1711547463697,-603.72,0.00055068,120]
[320760161,1711547463707,-500.0,0.00055068,120]
[320760162,1711547463718,-1541.09,0.00055068,120]
[320760163,1711547463729,-5144.18,0.00055068,120]
[320760164,1711547463739,-670.66,0.00055068,120]
[320760165,1711547463748,-665.9,0.00055068,120]
[320760166,1711547463758,-2085.51,0.00055068,120]
[320760167,1711547463771,-151.0,0.00055068,14]
[320760168,1711547463780,-151.0,0.00055068,120]
[320760169,1711547463797,-151.0,0.00055068,120]
[320760170,1711547463806,-500.0,0.00055068,120]
[320760171,1711547463816,-151.0,0.00055068,120]
[320760172,1711547463825,-500.0,0.00055068,120]
[320760173,1711547463835,-5860.09,0.00055068,120]
[320760174,1711547463846,-3887.87,0.00055068,120]
[320760175,1711547463856,-660.84,0.00055068,120]
[320760176,1711547463865,-500.0,0.00055068,120]
[320760177,1711547463875,-1213.12,0.00055068,120]
[320760178,1711547463886,-593.43,0.00055068,120]
[320760179,1711547463897,-299.776316,0.00055068,120]
[320760180,1711547463908,-154.22,0.000551,8]
[320760181,1711547463919,-500.0,0.000551,30]
[320760182,1711547463929,-155.11575077,0.00055117,120]
[320760183,1711547463940,-153.13638646,0.00055138,120]
[320760184,1711547463950,-153.13638646,0.00055138,120]
[320760185,1711547463960,-153.13638646,0.00055138,120]
[320760186,1711547463970,-153.13638646,0.00055138,120]
[320760187,1711547463981,-153.13638646,0.00055138,120]
[320760188,1711547463992,-153.13638646,0.00055138,120]
[320760189,1711547464002,-153.13638646,0.00055138,120]
[320760190,1711547464011,-153.13638646,0.00055138,120]
[320760191,1711547464021,-153.13638646,0.00055138,120]
[320760192,1711547464031,-153.13638646,0.00055138,120]
[320760193,1711547464047,-153.13638646,0.00055138,120]
[320760194,1711547464058,-153.13638646,0.00055138,120]
[320760195,1711547464068,-153.13638646,0.00055138,120]
[320760196,1711547464077,-153.13638646,0.00055138,120]
[320760197,1711547464087,-153.13638646,0.00055138,120]
[320760198,1711547464097,-153.13638646,0.00055138,120]
[320760199,1711547464107,-153.13638646,0.00055138,120]
[320760200,1711547464117,-153.13638646,0.00055138,120]
[320760201,1711547464128,-153.13638646,0.00055138,120]
[320760202,1711547464138,-153.63,0.00055138,120]
[320760203,1711547464148,-150.388433,0.00055138,120]
[320760204,1711547464158,-150.388433,0.00055138,120]
[320760205,1711547464171,-150.388433,0.00055138,120]
[320760206,1711547464180,-150.388433,0.00055138,120]
[320760207,1711547464191,-150.388433,0.00055138,120]
[320760208,1711547464201,-150.388433,0.00055138,120]
[320760209,1711547464213,-150.388433,0.00055138,120]
[320760210,1711547464223,-150.388433,0.00055138,120]
[320760211,1711547464234,-150.388433,0.00055138,120]
[320760212,1711547464243,-150.388433,0.00055138,120]
[320760213,1711547464253,-150.388433,0.00055138,120]
[320760214,1711547464263,-150.388433,0.00055138,120]
[320760215,1711547464274,-150.388433,0.00055138,120]
[320760216,1711547464284,-150.388433,0.00055138,120]
[320760217,1711547464303,-150.388433,0.00055138,120]
[320760218,1711547464313,-150.388433,0.00055138,120]
[320760219,1711547464324,-150.388433,0.00055138,120]
[320760220,1711547464335,-150.388433,0.00055138,120]
[320760221,1711547464345,-150.88,0.00055138,120]
[320760222,1711547464356,-169.12117844,0.00055138,120]
[320760223,1711547464367,-169.12117844,0.00055138,120]
[320760224,1711547464378,-169.62,0.00055138,120]
[320760225,1711547464390,-157.92903845,0.00055138,120]
[320760226,1711547464403,-157.92903845,0.00055138,120]
[320760227,1711547464415,-157.92903845,0.00055138,120]
[320760228,1711547464426,-157.92903845,0.00055138,120]
[320760229,1711547464437,-157.92903845,0.00055138,120]
[320760230,1711547464448,-157.92903845,0.00055138,120]
[320760231,1711547464458,-157.92903845,0.00055138,120]
[320760232,1711547464469,-157.92903845,0.00055138,120]
[320760233,1711547464479,-157.92903845,0.00055138,120]
[320760234,1711547464490,-157.92903845,0.00055138,120]
[320760235,1711547464500,-157.92903845,0.00055138,120]
[320760236,1711547464511,-157.92903845,0.00055138,120]
[320760237,1711547464521,-157.92903845,0.00055138,120]
[320760238,1711547464532,-157.92903845,0.00055138,120]
[320760239,1711547464549,-157.92903845,0.00055138,120]
[320760240,1711547464560,-157.92903845,0.00055138,120]
[320760241,1711547464571,-157.92903845,0.00055138,120]
[320760242,1711547464582,-158.42,0.00055138,120]
[320760243,1711547464592,-155.16,0.00055154,2]
[320760244,1711547464603,-500.0,0.00055238,120]
[320760245,1711547464614,-285.24,0.00055238,120]
[320760246,1711547464626,-500.0,0.00055238,120]
[320760247,1711547464636,-500.0,0.00055238,120]
[320760248,1711547464647,-500.0,0.00055238,120]
[320760249,1711547464658,-500.0,0.00055238,120]
[320760250,1711547464668,-500.0,0.00055238,120]
[320760251,1711547464678,-500.0,0.00055238,120]
[320760252,1711547464688,-500.0,0.00055238,120]
[320760253,1711547464697,-500.0,0.00055238,120]
[320760254,1711547464709,-500.0,0.00055238,120]
[320760255,1711547464719,-500.0,0.00055238,120]
[320760256,1711547464729,-500.0,0.00055238,120]
[320760257,1711547464738,-500.0,0.00055238,120]
[320760258,1711547464747,-500.0,0.00055238,120]
[320760259,1711547464757,-500.0,0.00055238,120]
[320760260,1711547464769,-500.0,0.00055238,120]
[320760261,1711547464788,-500.0,0.00055238,120]
[320760262,1711547464803,-624.42,0.00055238,120]
[320760263,1711547464817,-628.30278311,0.00055238,120]
[320760264,1711547464826,-500.0,0.00055238,120]
[320760265,1711547464836,-500.0,0.00055238,120]
[320760266,1711547464846,-500.0,0.00055238,120]
[320760267,1711547464856,-500.0,0.00055238,120]
[320760268,1711547464866,-1118.51,0.00055238,120]
[320760269,1711547464876,-1489.4,0.00055238,120]
[320760270,1711547464885,-544.42,0.00055238,120]
[320760271,1711547464895,-500.0,0.00055238,60]
[320760272,1711547464905,-589.53,0.00055238,120]
[320760273,1711547464914,-500.0,0.00055238,120]
[320760274,1711547464926,-500.0,0.00055238,120]
[320760275,1711547464935,-500.0,0.00055238,120]
[320760276,1711547464944,-1380.19,0.00055238,120]
[320760277,1711547464954,-500.0,0.00055238,120]
[320760278,1711547464963,-500.0,0.00055238,120]
[320760279,1711547464972,-500.0,0.00055238,120]
[320760280,1711547464981,-500.0,0.00055238,120]
[320760281,1711547464991,-500.0,0.00055238,120]
[320760282,1711547465001,-500.0,0.00055238,120]
[320760283,1711547465011,-500.0,0.00055238,120]
[320760284,1711547465021,-500.0,0.00055238,120]
[320760285,1711547465033,-500.0,0.00055238,120]
[320760286,1711547465050,-656.72,0.00055238,120]
[320760287,1711547465061,-500.0,0.00055238,120]
[320760288,1711547465071,-1193.31,0.00055238,120]
[320760289,1711547465081,-500.0,0.00055238,120]
[320760290,1711547465091,-500.0,0.00055238,120]
[320760291,1711547465102,-500.0,0.00055238,120]
[320760292,1711547465112,-500.0,0.00055238,120]
[320760293,1711547465124,-500.0,0.00055238,120]
[320760294,1711547465134,-500.0,0.00055238,120]
[320760295,1711547465145,-500.0,0.00055238,120]
[320760296,1711547465156,-500.0,0.00055238,120]
[320760297,1711547465166,-666.95,0.00055238,120]
[320760298,1711547465177,-500.0,0.00055238,120]
[320760299,1711547465191,-500.0,0.00055238,120]
[320760300,1711547465202,-589.24,0.00055238,120]
[320760301,1711547465213,-500.0,0.00055238,120]
[320760302,1711547465223,-254.84050451,0.00055238,120]
[320760303,1711547465234,-500.0,0.00055238,120]
[320760304,1711547465245,-500.0,0.00055238,120]
[320760305,1711547465256,-500.0,0.00055238,120]
[320760306,1711547465266,-500.0,0.00055238,120]
[320760307,1711547465277,-500.0,0.00055238,120]
[320760308,1711547465293,-500.0,0.00055238,120]
[320760309,1711547465304,-500.0,0.00055238,120]
[320760310,1711547465317,-500.0,0.00055238,120]
[320760311,1711547465328,-1201.75,0.00055238,120]
[320760312,1711547465339,-500.0,0.00055238,120]
[320760313,1711547465352,-500.0,0.00055238,120]
[320760314,1711547465364,-500.0,0.00055238,120]
[320760315,1711547465374,-500.0,0.00055238,120]
[320760316,1711547465385,-904.39,0.00055238,120]
[320760317,1711547465395,-598.55,0.00055238,120]
[320760318,1711547465405,-500.0,0.00055238,120]
[320760319,1711547465416,-500.0,0.00055238,120]
[320760320,1711547465426,-500.0,0.00055238,120]
[320760321,1711547465436,-500.0,0.00055238,120]
[320760322,1711547465446,-500.0,0.00055238,120]
[320760323,1711547465456,-500.0,0.00055238,7]
[320760324,1711547465466,-575.73,0.00055238,120]
[320760325,1711547465477,-872.43,0.00055238,120]
[320760326,1711547465660,-317.75,0.00055238,120]
[320760327,1711547465671,-500.0,0.00055238,120]
[320760328,1711547465681,-500.0,0.00055238,120]
[320760329,1711547465692,-1209.28,0.00055238,120]
[320760330,1711547465703,-500.0,0.00055238,120]
[320760331,1711547465713,-500.0,0.00055238,120]
[320760332,1711547465725,-1134.57,0.00055238,120]
[320760333,1711547465735,-442.3,0.00055238,120]
[320760334,1711547465745,-500.0,0.00055238,120]
[320760335,1711547465755,-500.0,0.00055238,120]
[320760336,1711547465767,-500.0,0.00055238,120]
[320760337,1711547465778,-500.0,0.00055238,120]
[320760338,1711547465791,-177.16,0.00055238,120]
[320760339,1711547465801,-500.0,0.00055238,120]
[320760340,1711547465811,-500.0,0.00055238,120]
[320760341,1711547465821,-500.0,0.00055238,120]
[320760342,1711547465831,-500.0,0.00055238,120]
[320760343,1711547465841,-515.49,0.00055238,120]
[320760344,1711547465852,-500.0,0.00055238,120]
[320760345,1711547465862,-1248.98,0.00055238,120]
[320760346,1711547465872,-1127.2,0.00055238,120]
[320760347,1711547465882,-500.0,0.00055238,120]
[320760348,1711547465891,-611.93,0.00055238,120]
[320760349,1711547465900,-590.85,0.00055238,120]
[320760350,1711547465909,-500.0,0.00055238,120]
[320760351,1711547465919,-500.0,0.00055238,120]
[320760352,1711547465928,-500.0,0.00055238,120]
[320760353,1711547465938,-500.0,0.00055238,120]
[320760354,1711547465949,-500.0,0.00055238,120]
[320760355,1711547465959,-844.02,0.00055238,120]
[320760356,1711547465969,-500.0,0.00055238,120]
[320760357,1711547465979,-500.0,0.00055238,120]
[320760358,1711547465989,-721.26,0.00055238,120]
[320760359,1711547466000,-1010.4,0.00055238,120]
[320760360,1711547466009,-500.0,0.00055238,120]
[320760361,1711547466019,-833.04,0.00055238,120]
[320760362,1711547466029,-500.0,0.00055238,120]
[320760363,1711547466041,-500.0,0.00055238,120]
[320760364,1711547466054,-500.0,0.00055238,120]
[320760365,1711547466064,-1930.49,0.00055238,120]
[320760366,1711547466074,-500.0,0.00055238,120]
[320760367,1711547466084,-500.0,0.00055238,120]
[320760368,1711547466093,-666.27,0.00055238,120]
[320760369,1711547466103,-500.0,0.00055238,120]
[320760370,1711547466113,-500.0,0.00055238,120]
[320760371,1711547466122,-2197.86,0.00055238,120]
[320760372,1711547466131,-500.0,0.00055238,120]
[320760373,1711547466141,-716.25,0.00055238,120]
[320760374,1711547466150,-2972.28,0.00055238,120]
[320760375,1711547466160,-616.38,0.00055238,120]
[320760376,1711547466170,-500.0,0.00055238,120]
[320760377,1711547466181,-500.0,0.00055238,120]
[320760378,1711547466191,-1479.78,0.00055238,120]
[320760379,1711547466201,-500.0,0.00055238,120]
[320760380,1711547466211,-500.0,0.00055238,120]
[320760381,1711547466220,-500.0,0.00055238,120]
[320760382,1711547466230,-4047.95,0.00055238,120]
[320760383,1711547466243,-500.0,0.00055238,120]
[320760384,1711547466253,-500.0,0.00055238,120]
[320760385,1711547466269,-500.0,0.00055238,120]
[320760386,1711547466279,-500.0,0.00055238,120]
[320760387,1711547466294,-27930.47,0.00055238,120]
[320760388,1711547466305,-1116.9,0.00055238,120]
[320760389,1711547466316,-771.73,0.00055238,120]
[320760390,1711547466325,-500.0,0.00055238,120]
[320760391,1711547466336,-500.0,0.00055238,120]
[320760392,1711547466346,-7615.47,0.00055238,120]
[320760393,1711547466356,-500.0,0.00055238,120]
[320760394,1711547466366,-1065.79,0.00055238,120]
[320760395,1711547466377,-1133.2,0.00055238,120]
[320760396,1711547466387,-500.0,0.00055238,120]
[320760397,1711547466398,-2890.95,0.00055238,120]
[320760398,1711547466408,-3247.62,0.00055238,120]
[320760399,1711547466418,-151.0,0.00055238,7]
[320760400,1711547466428,-1727.84,0.00055238,120]
[320760401,1711547466439,-19866.45,0.00055238,120]
[320760402,1711547466450,-500.0,0.00055238,120]
[320760403,1711547466461,-845.84,0.00055238,120]
[320760404,1711547466472,-151.0,0.00055238,120]